[Event "Moscow Rapid-ch 2018"]
[Site "Moscow"]
[Date "2018.12.09"]
[Round "7"]
[White "Martynyuk, Elizaveta"]
[Black "Glibka, Yulia"]
[Result "1-0"]
[ECO "B42"]
[WhiteElo "2128"]
[BlackElo "1979"]
[Annotator "NA"]
[PlyCount "53"]
[EventDate "2018.12.08"]
[EventType "swiss"]
[EventCountry "RUS"]
[SourceTitle "playchess.com"]
[Source "ChessBase"]
[SourceQuality "1"]
[TimeControl "900+10"]

1. e4 {[%emt 0:03:25]} c5 {[%emt 0:00:00]} 2. Nf3 {[%emt 0:00:01]} e6 {[%emt 0:00:00]} 3. d4 {[%emt 0:00:02]} cxd4 {[%emt 0:00:00]} 4. Nxd4 {[%emt 0:00:02]} a6 {[%emt 0:00:00]} 5. Bd3 {[%emt 0:00:03]} Nc6 {[%emt 0:00:02]} 6. Be3 {[%emt 0:00:07]} Nf6 {[%emt 0:00:08]} 7. O-O {[%emt 0:00:03]} Qc7 {[%emt 0:00:03]} 8. Nc3 {[%emt 0:00:10]} b5 {[%emt 0:00:12]} 9. Nxc6 dxc6 {[%emt 0:00:17]} 10. h3 {[%emt 0:01:09]} c5 {[%emt 0:01:20]} 11. e5 {[%emt 0:02:39]} Qxe5 {[%emt 0:05:19]} 12. Qf3 {[%emt 0:00:03]} Qb8 {[%emt 0:02:48]} 13. Ne4 {[%emt 0:01:15]} Bb7 {[%emt 0:02:05]} 14. Nxf6+ {[%emt 0:01:27]} gxf6 {[%emt 0:00:02]} 15. Be4 {[%emt 0:00:04]} Bxe4 {[%emt 0:00:50]} 16. Qxe4 {[%emt 0:00:02]} Qc8 {[%emt 0:00:38]} 17. Rad1 {[%emt 0:00:20]} f5 {[%emt 0:00:54]} 18. Qf3 {[%emt 0:00:30]} Be7 {[%emt 0:00:49]} 19. Rd2 {[%emt 0:00:48]} Rg8 {[%emt 0:00:36]} 20. Rfd1 {[%emt 0:00:14]} e5 {[%emt 0:01:24]} 21. Rd5 {[%emt 0:00:46]} f4 {[%emt 0:00:13]} 22. Bxc5 {[%emt 0:00:11]} f6 {[%emt 0:00:38]} 23. Qh5+ {[%emt 0:00:52]} Kf8 {[%emt 0:00:11]} 24. Bxe7+ {[%emt 0:00:05]} Kxe7 {[%emt 0:00:04]} 25. Qxh7+ {[%emt 0:00:02]} Kf8 {[%emt 0:00:09]} 26. Rd7 {[%emt 0:00:10]} Qe8 {[%emt 0:00:06]} 27. Qh6+ {[%emt 0:00:02]} 1-0

[Event "Moscow Rapid-ch 2018"]
[Site "Moscow"]
[Date "2018.12.09"]
[Round "7"]
[White "Girshgorn, Leonid"]
[Black "Volodin, Viktor"]
[Result "1-0"]
[ECO "D36"]
[WhiteElo "2038"]
[BlackElo "2175"]
[Annotator "NA"]
[PlyCount "82"]
[EventDate "2018.12.08"]
[EventType "swiss"]
[EventCountry "RUS"]
[SourceTitle "playchess.com"]
[Source "ChessBase"]
[SourceQuality "1"]
[TimeControl "900+10"]

1. d4 d5 2. c4 e6 3. Nc3 Nf6 4. Bg5 c6 5. cxd5 exd5 6. Qc2 Be7 7. e3 Nbd7 8. Bd3 Nf8 9. Nf3 Ng6 10. O-O-O Bg4 11. Kb1 Qa5 12. Rc1 Bxf3 13. gxf3 O-O-O 14. Na4 Kb8 15. h4 h6 16. Bxf6 Bxf6 17. Bxg6 fxg6 18. Nc5 Rd6 19. Qxg6 Rhd8 20. Qf7 Qc7 21. Qxc7+ Kxc7 22. h5 Re8 23. Rhg1 Re7 24. Nd3 Rd8 25. Rg6 Rde8 26. b4 a6 27. Kb2 Ra8 28. a4 Kb6 29. a5+ Kc7 30. f4 Rf8 31. Nc5 Rff7 32. f5 Kb8 33. Rg4 Re8 34. Ne6 Ree7 35. f4 Kc8 36. Rcg1 Kb8 37. Rg6 Kc8 38. Kc2 Kb8 39. Kd3 Kc8 40. Rxh6 Kb8 41. Rh8+ Ka7 {Ke4} 1-0

[Event "Moscow Rapid-ch 2018"]
[Site "Moscow"]
[Date "2018.12.09"]
[Round "7"]
[White "Vyrtosu, Natalia"]
[Black "Utiatskaja, Irina"]
[Result "0-1"]
[ECO "E73"]
[WhiteElo "1952"]
[BlackElo "2246"]
[Annotator "NA"]
[PlyCount "90"]
[EventDate "2018.12.08"]
[EventType "swiss"]
[EventCountry "RUS"]
[SourceTitle "playchess.com"]
[Source "ChessBase"]
[SourceQuality "1"]
[TimeControl "900+10"]

1. d4 {[%emt 0:00:00]} Nf6 {[%emt 0:00:00]} 2. c4 {[%emt 0:00:00]} g6 {[%emt 0:00:00]} 3. Nc3 {[%emt 0:00:00]} Bg7 {[%emt 0:00:00]} 4. e4 {[%emt 0:00:00]} d6 {[%emt 0:00:00]} 5. Be2 {[%emt 0:00:01]} O-O {[%emt 0:00:03]} 6. Be3 {[%emt 0:00:10]} c5 {[%emt 0:00:55]} 7. e5 {[%emt 0:00:34]} Nfd7 {[%emt 0:01:39]} 8. exd6 {[%emt 0:01:02]} cxd4 {[%emt 0:03:19]} 9. dxe7 {[%emt 0:01:03]} Qxe7 {[%emt 0:00:02]} 10. Bxd4 {[%emt 0:00:02]} Bxd4 {[%emt 0:00:21]} 11. Qxd4 {[%emt 0:00:02]} Nc6 {[%emt 0:00:01]} 12. Qf4 {[%emt 0:01:44]} Qb4 {[%emt 0:00:19]} 13. O-O-O {[%emt 0:00:19]} Nc5 {[%emt 0:01:50]} 14. Nf3 {[%emt 0:05:02]} Na4 {[%emt 0:00:40]} 15. Nxa4 {[%emt 0:00:27]} Qxa4 {[%emt 0:00:01]} 16. a3 {[%emt 0:01:16]} b5 {[%emt 0:00:39]} 17. Nd4 {[%emt 0:00:21]} Nxd4 {[%emt 0:01:06]} 18. Rxd4 {[%emt 0:00:35]} Bf5 {[%emt 0:00:01]} 19. Bd1 {[%emt 0:00:09]} Qa6 {[%emt 0:00:19]} 20. g4 {[%emt 0:01:23]} Be6 {[%emt 0:00:01]} 21. cxb5 Qxb5 {[%emt 0:00:32]} 22. Kb1 {[%emt 0:01:51]} a5 {[%emt 0:00:08]} 23. Ba4 {[%emt 0:00:33]} Qb7 {[%emt 0:00:37]} 24. Rc1 {[%emt 0:00:27]} Rab8 {[%emt 0:00:02]} 25. Rc2 {[%emt 0:00:02]} Qh1+ {[%emt 0:00:08]} 26. Rc1 {[%emt 0:00:10]} Qb7 {[%emt 0:00:54]} 27. Rc2 {[%emt 0:00:19]} Rbc8 {[%emt 0:00:23]} 28. Qe4 {[%emt 0:00:11]} Qa6 {[%emt 0:00:15]} 29. Rd1 {[%emt 0:00:25]} Rxc2 {[%emt 0:00:55]} 30. Bxc2 {[%emt 0:00:02]} Rb8 {[%emt 0:00:11]} 31. h4 {[%emt 0:00:23]} Qb5 {[%emt 0:00:47]} 32. Qd4 {[%emt 0:00:19]} Rc8 {[%emt 0:00:17]} 33. f3 {[%emt 0:00:21]} Qe2 {[%emt 0:00:09]} 34. Qd3 {[%emt 0:00:08]} Qf2 {[%emt 0:01:16]} 35. h5 {[%emt 0:00:07]} a4 {[%emt 0:01:47]} 36. hxg6 hxg6 {[%emt 0:00:01]} 37. Bxa4 {[%emt 0:00:43]} Bc4 {[%emt 0:00:04]} 38. Qe4 {[%emt 0:00:33]} Be2 {[%emt 0:00:19]} 39. Qb7 {[%emt 0:00:29]} Rf8 {[%emt 0:00:19]} 40. Rd7 {[%emt 0:00:14]} Bxf3 {[%emt 0:00:04]} 41. Qc7 {[%emt 0:00:02]} Bxg4 {[%emt 0:00:11]} 42. Re7 {[%emt 0:00:02]} Be6 {[%emt 0:00:09]} 43. Bc2 {[%emt 0:00:06]} Qe1+ {[%emt 0:00:06]} 44. Bd1 {[%emt 0:00:10]} Qxd1+ {[%emt 0:00:02]} 45. Qc1 {[%emt 0:00:01]} Bf5+ {[%emt 0:00:03]} 0-1

[Event "Moscow Rapid-ch 2018"]
[Site "Moscow"]
[Date "2018.12.09"]
[Round "8"]
[White "Yeletsky, Ivan"]
[Black "Gurvich, Vitaly"]
[Result "0-1"]
[ECO "B10"]
[WhiteElo "2406"]
[BlackElo "2270"]
[Annotator "NA"]
[PlyCount "72"]
[EventDate "2018.12.08"]
[EventType "swiss"]
[EventCountry "RUS"]
[SourceTitle "playchess.com"]
[Source "ChessBase"]
[SourceQuality "1"]
[TimeControl "900+10"]

1. e4 {[%emt 0:00:00]} c6 {[%emt 0:00:00]} 2. d3 {[%emt 0:00:12]} d5 {[%emt 0:00:00]} 3. Qe2 {[%emt 0:00:01]} dxe4 {[%emt 0:01:29]} 4. dxe4 {[%emt 0:00:02]} e5 {[%emt 0:00:03]} 5. Nf3 {[%emt 0:00:06]} Nd7 {[%emt 0:00:06]} 6. Nbd2 {[%emt 0:00:13]} Ngf6 {[%emt 0:00:05]} 7. Nc4 {[%emt 0:00:20]} Qc7 {[%emt 0:00:06]} 8. Bd2 {[%emt 0:00:06]} Bc5 {[%emt 0:01:23]} 9. O-O-O {[%emt 0:00:25]} O-O {[%emt 0:00:14]} 10. Nh4 {[%emt 0:04:55]} b5 {[%emt 0:00:55]} 11. Ba5 {[%emt 0:00:07]} Bb6 {[%emt 0:03:05]} 12. Nxb6 {[%emt 0:01:31]} axb6 {[%emt 0:00:05]} 13. Bc3 {[%emt 0:00:04]} Rxa2 {[%emt 0:00:54]} 14. b4 {[%emt 0:02:20]} c5 {[%emt 0:01:17]} 15. Kb1 {[%emt 0:02:34]} Ra3 {[%emt 0:01:16]} 16. Bb2 {[%emt 0:00:08]} Ra4 {[%emt 0:00:23]} 17. f3 {[%emt 0:00:11]} cxb4 {[%emt 0:00:56]} 18. Nf5 {[%emt 0:01:30]} Nc5 {[%emt 0:00:18]} 19. Qe3 {[%emt 0:00:02]} Be6 {[%emt 0:01:08]} 20. Re1 {[%emt 0:03:04]} Ba2+ {[%emt 0:00:17]} 21. Kc1 {[%emt 0:00:01]} Nb3+ {[%emt 0:00:11]} 22. Kd1 {[%emt 0:00:01]} Rd8+ {[%emt 0:01:16]} 23. Bd3 {[%emt 0:00:04]} Bb1 {[%emt 0:01:27]} 24. Ke2 {[%emt 0:00:37]} Bxc2 {[%emt 0:00:32]} 25. Bxb5 {[%emt 0:00:03]} Ra2 {[%emt 0:00:31]} 26. Qg5 {[%emt 0:00:25]} Bd3+ {[%emt 0:00:54]} 27. Kf2 {[%emt 0:00:02]} Rxb2+ {[%emt 0:00:13]} 28. Kg3 {[%emt 0:00:01]} Nh5+ {[%emt 0:00:19]} 29. Qxh5 {[%emt 0:00:01]} Bxb5 {[%emt 0:00:11]} 30. Nxg7 {[%emt 0:00:42]} Kxg7 {[%emt 0:00:09]} 31. Qg5+ {[%emt 0:00:01]} Kf8 {[%emt 0:00:02]} 32. Qh6+ {[%emt 0:00:07]} Ke8 {[%emt 0:00:04]} 33. Rd1 {[%emt 0:00:21]} Nd4 {[%emt 0:00:18]} 34. Qxh7 {[%emt 0:00:07]} Qd6 {[%emt 0:00:10]} 35. Qh8+ {[%emt 0:00:14]} Ke7 {[%emt 0:00:02]} 36. Qh4+ {[%emt 0:00:02]} Qf6 {[%emt 0:00:02]} 0-1

[Event "Moscow Rapid-ch 2018"]
[Site "Moscow"]
[Date "2018.12.09"]
[Round "8"]
[White "Dragomarezkij, Evgeni"]
[Black "Lavrov, Maxim"]
[Result "1/2-1/2"]
[ECO "E81"]
[WhiteElo "2385"]
[BlackElo "2387"]
[Annotator "NA"]
[PlyCount "156"]
[EventDate "2018.12.08"]
[EventType "swiss"]
[EventCountry "RUS"]
[SourceTitle "playchess.com"]
[Source "ChessBase"]
[SourceQuality "1"]
[TimeControl "900+10"]

1. c4 {[%emt 0:00:00]} Nf6 {[%emt 0:00:00]} 2. Nc3 {[%emt 0:00:00]} g6 {[%emt 0:00:00]} 3. e4 {[%emt 0:00:00]} d6 {[%emt 0:00:00]} 4. d4 {[%emt 0:00:00]} Bg7 {[%emt 0:00:00]} 5. f3 {[%emt 0:00:00]} O-O {[%emt 0:00:00]} 6. Bg5 {[%emt 0:00:02]} c5 {[%emt 0:00:04]} 7. d5 {[%emt 0:00:07]} e6 {[%emt 0:00:06]} 8. Qd2 {[%emt 0:00:05]} exd5 {[%emt 0:00:05]} 9. Nxd5 {[%emt 0:00:04]} Be6 {[%emt 0:00:15]} 10. Ne2 {[%emt 0:00:03]} Bxd5 {[%emt 0:00:15]} 11. cxd5 {[%emt 0:00:04]} h6 {[%emt 0:00:28]} 12. Be3 {[%emt 0:00:14]} Nbd7 {[%emt 0:00:21]} 13. Nc3 {[%emt 0:00:04]} h5 {[%emt 0:00:23]} 14. Be2 {[%emt 0:00:08]} a6 {[%emt 0:00:20]} 15. a4 {[%emt 0:00:07]} Nh7 {[%emt 0:00:19]} 16. O-O {[%emt 0:00:08]} Re8 {[%emt 0:00:13]} 17. Kh1 {[%emt 0:00:32]} Ne5 {[%emt 0:00:26]} 18. Bg1 {[%emt 0:03:19]} Qa5 {[%emt 0:01:04]} 19. f4 {[%emt 0:00:42]} Nd7 {[%emt 0:00:29]} 20. Bd3 {[%emt 0:01:22]} Rac8 {[%emt 0:00:35]} 21. e5 {[%emt 0:00:29]} dxe5 {[%emt 0:00:18]} 22. f5 {[%emt 0:00:01]} g5 {[%emt 0:00:35]} 23. Be3 {[%emt 0:02:34]} g4 {[%emt 0:02:46]} 24. Ne4 {[%emt 0:03:00]} Qxd2 {[%emt 0:01:33]} 25. Bxd2 {[%emt 0:00:02]} Bf8 {[%emt 0:00:48]} 26. f6 {[%emt 0:01:05]} c4 {[%emt 0:00:05]} 27. Bc2 {[%emt 0:00:13]} Nc5 {[%emt 0:01:27]} 28. Rf5 {[%emt 0:00:23]} Red8 {[%emt 0:01:58]} 29. Nc3 {[%emt 0:00:18]} Nb3 {[%emt 0:01:30]} 30. Bxb3 {[%emt 0:00:46]} cxb3 {[%emt 0:00:02]} 31. Rxh5 {[%emt 0:00:41]} Nxf6 {[%emt 0:00:28]} 32. Rxe5 {[%emt 0:00:09]} Nh7 {[%emt 0:01:08]} 33. Re4 {[%emt 0:00:19]} Nf6 {[%emt 0:00:25]} 34. Rd4 {[%emt 0:00:29]} Bg7 {[%emt 0:00:22]} 35. Rd1 {[%emt 0:00:39]} Kh7 {[%emt 0:00:19]} 36. Bg5 {[%emt 0:00:15]} Rd7 {[%emt 0:00:11]} 37. Rb4 {[%emt 0:01:00]} Nh5 {[%emt 0:00:32]} 38. Rxb3 Kg6 {[%emt 0:00:06]} 39. Be3 {[%emt 0:00:21]} Be5 {[%emt 0:00:02]} 40. g3 {[%emt 0:00:21]} Rc4 {[%emt 0:00:13]} 41. a5 {[%emt 0:00:11]} f6 {[%emt 0:00:14]} 42. Kg2 {[%emt 0:00:02]} Ng7 {[%emt 0:00:08]} 43. Bb6 {[%emt 0:00:11]} Nf5 {[%emt 0:00:06]} 44. Rd2 {[%emt 0:00:04]} Ne7 {[%emt 0:00:10]} 45. Bf2 {[%emt 0:00:18]} Bxc3 {[%emt 0:00:32]} 46. Rxc3 {[%emt 0:00:04]} Rxc3 {[%emt 0:00:04]} 47. bxc3 {[%emt 0:00:01]} Rxd5 {[%emt 0:00:20]} 48. Rb2 {[%emt 0:00:39]} Rb5 {[%emt 0:00:09]} 49. Rxb5 {[%emt 0:00:17]} axb5 {[%emt 0:00:02]} 50. h4 {[%emt 0:00:34]} gxh3+ {[%emt 0:00:03]} 51. Kxh3 {[%emt 0:00:00]} Nc6 {[%emt 0:00:09]} 52. Bb6 {[%emt 0:00:09]} f5 {[%emt 0:00:12]} 53. Kh4 {[%emt 0:00:09]} Ne5 {[%emt 0:00:12]} 54. Bd8 {[%emt 0:00:19]} Nf3+ {[%emt 0:00:15]} 55. Kh3 {[%emt 0:00:01]} Nd2 {[%emt 0:00:01]} 56. Bc7 {[%emt 0:00:22]} Ne4 {[%emt 0:00:05]} 57. Be5 {[%emt 0:00:04]} Kh5 {[%emt 0:00:01]} 58. Bd4 {[%emt 0:00:16]} Ng5+ {[%emt 0:00:05]} 59. Kg2 {[%emt 0:00:04]} Kg4 {[%emt 0:00:01]} 60. Bf6 {[%emt 0:00:16]} Ne4 {[%emt 0:00:29]} 61. Be5 {[%emt 0:00:01]} Nc5 {[%emt 0:00:05]} 62. Bf4 {[%emt 0:00:10]} Ne6 {[%emt 0:00:25]} 63. Be3 {[%emt 0:00:06]} Nc7 {[%emt 0:00:09]} 64. Bd4 {[%emt 0:00:24]} Ne6 {[%emt 0:00:49]} 65. Be3 {[%emt 0:00:04]} Nc7 {[%emt 0:00:16]} 66. Bf4 {[%emt 0:00:11]} Nd5 {[%emt 0:00:07]} 67. Be5 {[%emt 0:00:05]} Ne7 {[%emt 0:00:15]} 68. Kf2 {[%emt 0:00:10]} Nc6 {[%emt 0:00:03]} 69. Bc7 {[%emt 0:00:04]} b4 {[%emt 0:00:15]} 70. cxb4 {[%emt 0:00:05]} Nxb4 {[%emt 0:00:01]} 71. Kg2 {[%emt 0:00:06]} Nd5 {[%emt 0:00:03]} 72. Bb8 {[%emt 0:00:08]} f4 {[%emt 0:00:21]} 73. gxf4 {[%emt 0:00:02]} Nxf4+ {[%emt 0:00:01]} 74. Bxf4 {[%emt 0:00:17]} Kxf4 {[%emt 0:00:01]} 75. Kf2 {[%emt 0:00:02]} Ke4 {[%emt 0:00:02]} 76. Ke2 {[%emt 0:00:01]} Kd4 {[%emt 0:00:01]} 77. Kd2 {[%emt 0:00:01]} Kc4 {[%emt 0:00:01]} 78. a6 {[%emt 0:00:02]} bxa6 {[%emt 0:00:03]} 1/2-1/2

[Event "Moscow Rapid-ch 2018"]
[Site "Moscow"]
[Date "2018.12.09"]
[Round "8"]
[White "Reprintsev, Alexander"]
[Black "Kornilovich, Dmitry"]
[Result "0-1"]
[ECO "B10"]
[WhiteElo "2371"]
[BlackElo "2133"]
[Annotator "NA"]
[PlyCount "228"]
[EventDate "2018.12.08"]
[EventType "swiss"]
[EventCountry "RUS"]
[SourceTitle "playchess.com"]
[Source "ChessBase"]
[SourceQuality "1"]
[TimeControl "900+10"]

1. e4 {[%emt 0:00:39]} c6 {[%emt 0:00:00]} 2. b3 {[%emt 0:00:06]} d5 {[%emt 0:00:00]} 3. Qe2 {[%emt 0:00:02]} dxe4 {[%emt 0:00:11]} 4. Nc3 {[%emt 0:00:01]} g6 {[%emt 0:00:46]} 5. Bb2 {[%emt 0:00:06]} Bg7 {[%emt 0:00:02]} 6. h4 {[%emt 0:00:10]} h5 {[%emt 0:00:17]} 7. Nh3 {[%emt 0:00:30]} Bg4 {[%emt 0:00:16]} 8. Qxe4 {[%emt 0:00:38]} Nf6 {[%emt 0:00:30]} 9. Qd3 {[%emt 0:01:47]} Nbd7 {[%emt 0:00:27]} 10. Ng5 {[%emt 0:03:03]} O-O {[%emt 0:00:58]} 11. Qg3 {[%emt 0:00:12]} Nc5 {[%emt 0:02:02]} 12. f3 {[%emt 0:01:20]} Bf5 {[%emt 0:00:01]} 13. O-O-O {[%emt 0:00:03]} e5 {[%emt 0:02:00]} 14. Qxe5 {[%emt 0:00:46]} Nfe4 {[%emt 0:00:26]} 15. Qxg7+ {[%emt 0:00:02]} Kxg7 {[%emt 0:00:06]} 16. Ncxe4+ {[%emt 0:00:01]} Kh6 {[%emt 0:00:39]} 17. Nxc5 {[%emt 0:00:02]} b6 {[%emt 0:00:23]} 18. Nce4 {[%emt 0:00:05]} f6 {[%emt 0:01:17]} 19. Nh3 {[%emt 0:02:25]} Bxe4 {[%emt 0:00:01]} 20. fxe4 {[%emt 0:00:02]} Qd6 {[%emt 0:00:02]} 21. Be2 {[%emt 0:00:21]} Qg3 {[%emt 0:00:11]} 22. Rdf1 {[%emt 0:00:18]} f5 {[%emt 0:02:04]} 23. exf5 {[%emt 0:01:02]} Rxf5 {[%emt 0:00:02]} 24. Rxf5 {[%emt 0:00:06]} gxf5 {[%emt 0:00:01]} 25. Bf3 {[%emt 0:00:02]} Re8 {[%emt 0:00:12]} 26. Bf6 {[%emt 0:00:06]} Qd6 {[%emt 0:03:30]} 27. Bg5+ {[%emt 0:00:02]} Kh7 {[%emt 0:00:06]} 28. Kb2 {[%emt 0:00:11]} a5 {[%emt 0:00:09]} 29. Bxh5 {[%emt 0:00:27]} Re4 {[%emt 0:00:25]} 30. Bf3 {[%emt 0:00:38]} a4 {[%emt 0:00:00]} 31. Bxe4 a3+ 32. Kc1 {[%emt 0:00:53]} fxe4 {[%emt 0:00:03]} 33. Rf1 {[%emt 0:00:44]} c5 {[%emt 0:02:10]} 34. Be3 {[%emt 0:00:51]} Qe5 {[%emt 0:00:27]} 35. c3 {[%emt 0:00:08]} Qg3 {[%emt 0:00:31]} 36. Ng5+ {[%emt 0:00:30]} Kh8 {[%emt 0:00:00]} 37. Rf8+ Kg7 38. Ne6+ {[%emt 0:01:20]} Kh7 {[%emt 0:00:01]} 39. Rf7+ {[%emt 0:00:03]} Kh8 {[%emt 0:00:01]} 40. Rf8+ {[%emt 0:00:32]} Kh7 {[%emt 0:00:01]} 41. Rf2 {[%emt 0:00:40]} Qxh4 {[%emt 0:00:28]} 42. Ng5+ {[%emt 0:00:08]} Kg6 {[%emt 0:00:06]} 43. Nh3 {[%emt 0:00:03]} Kg7 {[%emt 0:00:27]} 44. Kc2 {[%emt 0:00:04]} Qd8 {[%emt 0:00:12]} 45. Nf4 {[%emt 0:00:04]} Qh4 {[%emt 0:00:09]} 46. Rf1 {[%emt 0:00:07]} Qg4 {[%emt 0:00:05]} 47. g3 {[%emt 0:00:07]} Kg8 {[%emt 0:00:11]} 48. Rg1 {[%emt 0:00:17]} Kg7 {[%emt 0:00:08]} 49. Rh1 {[%emt 0:00:06]} Kg8 {[%emt 0:00:08]} 50. Nd5 {[%emt 0:00:17]} Qf3 {[%emt 0:00:45]} 51. Rh4 {[%emt 0:00:10]} Qf1 {[%emt 0:00:17]} 52. Rg4+ {[%emt 0:00:03]} Kh8 {[%emt 0:00:03]} 53. Rh4+ {[%emt 0:00:04]} Kg7 {[%emt 0:00:03]} 54. Rg4+ {[%emt 0:00:01]} Kh8 {[%emt 0:00:02]} 55. Rxe4 {[%emt 0:00:07]} Qa1 {[%emt 0:00:03]} 56. Re8+ {[%emt 0:00:16]} Kg7 {[%emt 0:00:03]} 57. Nxb6 {[%emt 0:00:07]} Qxa2+ {[%emt 0:00:03]} 58. Kd3 {[%emt 0:00:01]} Qxb3 {[%emt 0:00:20]} 59. Re7+ {[%emt 0:00:10]} Kf6 {[%emt 0:00:08]} 60. Bxc5 {[%emt 0:00:01]} a2 {[%emt 0:00:30]} 61. Ra7 {[%emt 0:00:06]} Qb1+ {[%emt 0:00:11]} 62. Kc4 {[%emt 0:00:02]} a1=Q {[%emt 0:00:05]} 63. Rxa1 {[%emt 0:00:01]} Qxa1 {[%emt 0:00:01]} 64. Be3 {[%emt 0:00:08]} Ke6 {[%emt 0:00:08]} 65. Kb5 {[%emt 0:00:25]} Qb1+ {[%emt 0:00:19]} 66. Kc5 {[%emt 0:00:13]} Qf5+ {[%emt 0:00:07]} 67. Kc4 {[%emt 0:00:19]} Qe4+ {[%emt 0:00:16]} 68. Kb3 {[%emt 0:00:21]} Kd6 {[%emt 0:00:19]} 69. Nc4+ {[%emt 0:00:02]} Kc6 {[%emt 0:00:01]} 70. Nb2 {[%emt 0:00:03]} Kb5 {[%emt 0:00:08]} 71. Bf4 {[%emt 0:00:11]} Qe6+ {[%emt 0:00:18]} 72. c4+ {[%emt 0:00:10]} Kc6 {[%emt 0:00:08]} 73. d4 {[%emt 0:00:08]} Qe4 {[%emt 0:00:10]} 74. Be5 {[%emt 0:00:29]} Qe3+ {[%emt 0:00:07]} 75. Kc2 {[%emt 0:00:03]} Qe2+ {[%emt 0:00:04]} 76. Kc3 {[%emt 0:00:01]} Qe1+ {[%emt 0:00:05]} 77. Kb3 {[%emt 0:00:07]} Qe3+ {[%emt 0:00:04]} 78. Ka2 {[%emt 0:00:14]} Kb6 {[%emt 0:00:22]} 79. Kb1 {[%emt 0:00:13]} Ka5 {[%emt 0:00:18]} 80. Kc2 {[%emt 0:00:01]} Qe2+ {[%emt 0:00:08]} 81. Kc3 {[%emt 0:00:01]} Qe1+ {[%emt 0:00:01]} 82. Kb3 {[%emt 0:00:24]} Qe3+ {[%emt 0:00:02]} 83. Ka2 {[%emt 0:00:05]} Qe2 {[%emt 0:00:10]} 84. Kb3 {[%emt 0:00:04]} Qe3+ 85. Kc2 Qe2+ {[%emt 0:00:06]} 86. Kc1 {[%emt 0:00:02]} Kb4 {[%emt 0:00:15]} 87. Bf4 {[%emt 0:00:37]} Kb3 {[%emt 0:00:15]} 88. Bd2 {[%emt 0:00:03]} Qf1+ {[%emt 0:00:22]} 89. Nd1 {[%emt 0:00:02]} Qxc4+ {[%emt 0:00:01]} 90. Nc3 {[%emt 0:00:15]} Qf1+ {[%emt 0:00:07]} 91. Nd1 {[%emt 0:00:04]} Qa6 {[%emt 0:00:34]} 92. Bf4 {[%emt 0:00:18]} Qd3 {[%emt 0:00:13]} 93. Ne3 {[%emt 0:00:04]} Qxd4 {[%emt 0:00:14]} 94. Ng4 {[%emt 0:00:25]} Qd3 {[%emt 0:00:18]} 95. Ne3 {[%emt 0:00:03]} Qe2 {[%emt 0:00:03]} 96. Bh6 {[%emt 0:00:28]} Qe1+ {[%emt 0:00:04]} 97. Nd1 {[%emt 0:00:01]} Qxg3 {[%emt 0:00:04]} 98. Be3 {[%emt 0:00:10]} Qg2 {[%emt 0:00:06]} 99. Nf2 {[%emt 0:00:05]} Qf3 {[%emt 0:00:03]} 100. Kd2 {[%emt 0:00:02]} Kc4 {[%emt 0:00:05]} 101. Nd1 {[%emt 0:00:23]} Qe4 {[%emt 0:00:23]} 102. Nf2 {[%emt 0:00:06]} Qf3 {[%emt 0:00:10]} 103. Nd1 {[%emt 0:00:02]} Qd5+ {[%emt 0:00:09]} 104. Ke2 {[%emt 0:00:17]} Qd3+ {[%emt 0:00:04]} 105. Ke1 {[%emt 0:00:00]} Kd5 {[%emt 0:00:06]} 106. Bd2 {[%emt 0:00:02]} Qf3 {[%emt 0:00:05]} 107. Be3 {[%emt 0:00:23]} Ke4 {[%emt 0:00:16]} 108. Kd2 {[%emt 0:00:03]} Qf1 {[%emt 0:00:12]} 109. Nc3+ {[%emt 0:00:37]} Kf3 {[%emt 0:00:00]} 110. Bd4 {[%emt 0:00:25]} Qc4 {[%emt 0:00:05]} 111. Bg7 {[%emt 0:00:16]} Qc5 {[%emt 0:00:30]} 112. Kc2 {[%emt 0:00:11]} Qf2+ {[%emt 0:00:10]} 113. Kd3 {[%emt 0:00:52]} Qf1+ {[%emt 0:00:10]} 114. Kd4 {[%emt 0:00:29]} Qg1+ {[%emt 0:00:03]} 0-1

[Event "Moscow Rapid-ch 2018"]
[Site "Moscow"]
[Date "2018.12.09"]
[Round "8"]
[White "Pavlov, Danila"]
[Black "Vlasov, Sergey"]
[Result "1/2-1/2"]
[ECO "C68"]
[WhiteElo "2323"]
[BlackElo "2229"]
[Annotator "NA"]
[PlyCount "45"]
[EventDate "2018.12.08"]
[EventType "swiss"]
[EventCountry "RUS"]
[SourceTitle "playchess.com"]
[Source "ChessBase"]
[SourceQuality "1"]
[TimeControl "900+10"]

1. e4 {[%emt 0:00:00]} e5 {[%emt 0:00:00]} 2. Nf3 {[%emt 0:00:00]} Nc6 {[%emt 0:00:00]} 3. Bb5 {[%emt 0:00:00]} a6 {[%emt 0:00:00]} 4. Bxc6 {[%emt 0:00:00]} dxc6 {[%emt 0:00:00]} 5. O-O {[%emt 0:00:00]} f6 6. d4 exd4 {[%emt 0:00:01]} 7. Nxd4 {[%emt 0:00:00]} Bd6 {[%emt 0:00:18]} 8. f4 {[%emt 0:00:27]} Qe7 {[%emt 0:00:31]} 9. e5 {[%emt 0:01:15]} fxe5 {[%emt 0:01:08]} 10. fxe5 {[%emt 0:00:01]} Bc5 {[%emt 0:02:20]} 11. Kh1 {[%emt 0:01:48]} Be6 {[%emt 0:02:17]} 12. Bg5 {[%emt 0:02:06]} Qd7 {[%emt 0:00:02]} 13. Nxe6 {[%emt 0:00:06]} Qxe6 {[%emt 0:00:02]} 14. Nc3 {[%emt 0:00:03]} Ne7 {[%emt 0:02:57]} 15. Ne4 {[%emt 0:00:50]} Bb6 {[%emt 0:01:23]} 16. Bxe7 {[%emt 0:04:58]} Qxe7 {[%emt 0:01:00]} 17. Qh5+ {[%emt 0:00:03]} g6 {[%emt 0:03:57]} 18. Qh3 {[%emt 0:01:09]} Rf8 {[%emt 0:00:50]} 19. Nf6+ {[%emt 0:00:06]} Rxf6 {[%emt 0:00:01]} 20. exf6 {[%emt 0:00:02]} Qf7 {[%emt 0:00:05]} 21. Rae1+ {[%emt 0:00:03]} Kf8 {[%emt 0:00:00]} 22. Re7 {[%emt 0:00:05]} Qc4 {[%emt 0:00:03]} 23. Qh6+ {[%emt 0:00:02]} 1/2-1/2

[Event "Moscow Rapid-ch 2018"]
[Site "Moscow"]
[Date "2018.12.09"]
[Round "8"]
[White "Matyunin, Maxim"]
[Black "Stukan, Martin"]
[Result "0-1"]
[ECO "D91"]
[WhiteElo "2218"]
[BlackElo "2142"]
[Annotator "NA"]
[PlyCount "58"]
[EventDate "2018.12.08"]
[EventType "swiss"]
[EventCountry "RUS"]
[SourceTitle "playchess.com"]
[Source "ChessBase"]
[SourceQuality "1"]
[TimeControl "900+10"]

1. d4 {[%emt 0:00:00]} Nf6 {[%emt 0:00:00]} 2. Nf3 {[%emt 0:00:00]} g6 {[%emt 0:00:00]} 3. c4 {[%emt 0:00:00]} Bg7 {[%emt 0:00:00]} 4. Nc3 {[%emt 0:00:00]} d5 {[%emt 0:00:00]} 5. Bg5 {[%emt 0:00:00]} Ne4 {[%emt 0:00:00]} 6. Bh4 {[%emt 0:00:01]} Nxc3 {[%emt 0:00:00]} 7. bxc3 {[%emt 0:00:01]} dxc4 {[%emt 0:00:00]} 8. e3 {[%emt 0:00:06]} Be6 {[%emt 0:00:02]} 9. Rb1 {[%emt 0:00:35]} b6 {[%emt 0:00:07]} 10. Nd2 {[%emt 0:00:03]} O-O {[%emt 0:00:23]} 11. Qf3 {[%emt 0:00:24]} Nd7 {[%emt 0:01:18]} 12. Bg3 {[%emt 0:00:51]} Nf6 {[%emt 0:01:14]} 13. Bxc4 {[%emt 0:00:05]} Bxc4 {[%emt 0:01:13]} 14. Nxc4 {[%emt 0:00:02]} c5 {[%emt 0:00:31]} 15. O-O {[%emt 0:00:12]} Qd5 {[%emt 0:00:36]} 16. Qxd5 {[%emt 0:00:38]} Nxd5 {[%emt 0:00:01]} 17. Rfc1 {[%emt 0:00:02]} Rac8 {[%emt 0:00:04]} 18. a4 {[%emt 0:00:12]} f5 {[%emt 0:02:01]} 19. f4 {[%emt 0:03:33]} Rc7 {[%emt 0:01:09]} 20. a5 {[%emt 0:06:32]} cxd4 {[%emt 0:00:46]} 21. cxd4 {[%emt 0:00:38]} Rfc8 {[%emt 0:00:08]} 22. axb6 {[%emt 0:00:01]} axb6 {[%emt 0:01:10]} 23. Rb5 {[%emt 0:00:13]} Nxe3 {[%emt 0:00:07]} 24. Nxe3 {[%emt 0:00:16]} Rxc1+ {[%emt 0:00:02]} 25. Kf2 {[%emt 0:00:01]} Bxd4 {[%emt 0:00:02]} 26. Kf3 {[%emt 0:00:01]} R8c3 {[%emt 0:00:15]} 27. Bf2 {[%emt 0:00:01]} Bxe3 {[%emt 0:00:10]} 28. Bxe3 {[%emt 0:00:02]} Re1 {[%emt 0:00:03]} 29. Re5 {[%emt 0:00:03]} Rexe3+ {[%emt 0:00:04]} 0-1